bitfinex-derivatives/quotes_BTCF0:USTF0_20250505
["timestamp","ask_amount","ask_price","bid_price","bid_amount"]
[1746462767787,0.6958941,94258.0,94257.0,0.00159139]
[1746462768585,0.6958941,94258.0,94257.0,0.00359139]
[1746462768785,0.6958941,94258.0,94257.0,0.21578779]
[1746462768987,0.6958941,94258.0,94257.0,0.00359139]
[1746462769585,0.6958941,94258.0,94257.0,0.00559139]
[1746462771091,0.6958941,94258.0,94257.0,0.21778779]
[1746462771993,0.6958941,94258.0,94257.0,0.00559139]
[1746462772186,0.6958941,94258.0,94257.0,0.21778779]
[1746462773195,0.2122144,94249.0,94232.0,0.3608]
[1746462773389,0.5730144,94249.0,94247.0,0.0581]
[1746462773584,0.5730144,94249.0,94248.0,0.21380734]
[1746462773983,0.6313144,94249.0,94248.0,0.21380734]
[1746462774187,0.6947144,94249.0,94248.0,0.33210734]
[1746462774587,0.70262606,94249.0,94248.0,0.33210734]
[1746462777395,0.76986606,94249.0,94248.0,0.33210734]
[1746462779896,0.55765166,94249.0,94248.0,0.33210734]
[1746462780198,0.76986606,94249.0,94248.0,0.33210734]
[1746462780695,0.3182788,94267.0,94252.0,0.0530515]
[1746462781000,0.06724,94266.0,94265.0,0.2121784]
[1746462782102,0.07504721,94266.0,94265.0,0.2121784]
[1746462782295,0.06724,94266.0,94265.0,0.2121784]
[1746462783887,0.06824,94266.0,94265.0,0.2121784]
[1746462784092,0.001,94266.0,94265.0,0.2121784]
[1746462784801,0.0015,94275.0,94274.0,0.2121581]
[1746462786009,0.0015,94275.0,94274.0,0.2698581]
[1746462788094,0.0045,94275.0,94274.0,0.3301581]
[1746462788701,0.12864,94292.0,94291.0,0.2121199]
[1746462789102,0.34876071,94292.0,94291.0,0.2121199]
[1746462789510,0.40826071,94292.0,94291.0,0.3350199]
[1746462789803,0.46756071,94292.0,94291.0,0.3350199]
[1746462791405,0.40532071,94292.0,94291.0,0.3360199]
[1746462791608,0.47256071,94292.0,94291.0,0.3360199]
[1746462792507,0.46756071,94292.0,94291.0,0.3350199]
[1746462792719,0.46956071,94292.0,94291.0,0.3350199]
[1746462793117,0.2121514,94279.0,94276.0,0.4162]
[1746462793418,0.2651886,94279.0,94278.0,0.2651849]
[1746462793611,0.6259886,94279.0,94278.0,0.2651849]
[1746462793812,0.3608,94279.0,94278.0,0.2651849]
[1746462794413,0.3608,94279.0,94278.0,0.3844849]
[1746462795407,0.5729469,94279.0,94278.0,0.3844849]
[1746462796017,0.002,94279.0,94278.0,0.3844849]
[1746462796222,0.2141469,94279.0,94278.0,0.3844849]
[1746462796721,0.2151469,94279.0,94278.0,0.3844849]
[1746462798119,0.2121469,94279.0,94278.0,0.3844849]
[1746462798325,0.2141469,94279.0,94278.0,0.3844849]
[1746462798722,0.2141469,94279.0,94278.0,0.3266849]
[1746462798925,0.2121469,94279.0,94278.0,0.3266849]
[1746462799223,0.2141469,94279.0,94278.0,0.3889849]
[1746462800523,0.002,94279.0,94278.0,0.3889849]
[1746462801126,0.002,94279.0,94278.0,0.4474849]
[1746462802821,0.4276,94293.0,94292.0,0.2121176]
[1746462803619,0.4276,94293.0,94292.0,0.3256176]
[1746462805024,0.6397154,94293.0,94292.0,0.3256176]
[1746462805925,0.2789154,94293.0,94292.0,0.3256176]
[1746462806229,0.2829154,94293.0,94292.0,0.3256176]
[1746462806424,0.0738,94293.0,94292.0,0.3256176]
[1746462807229,0.1294,94293.0,94292.0,0.3256176]
[1746462807626,0.3415154,94293.0,94292.0,0.3256176]
[1746462807819,0.1294,94293.0,94292.0,0.3256176]
[1746462809424,0.1892,94293.0,94292.0,0.3256176]
[1746462812734,0.1224,94293.0,94292.0,0.3256176]
[1746462812933,0.3345154,94293.0,94292.0,0.3256176]
[1746462813134,0.1224,94293.0,94292.0,0.3256176]
[1746462815532,0.007,94293.0,94292.0,0.3256176]
[1746462815732,0.00781813,94325.0,94292.0,1.4274412]
[1746462815926,0.1774,94324.0,94323.0,0.2120479]
[1746462816327,0.212012,94339.0,94325.0,0.2120434]
[1746462816533,0.0581,94334.0,94325.0,0.2120434]
[1746462816732,0.0587,94333.0,94325.0,0.5728434]
[1746462817329,0.0581,94334.0,94325.0,0.5728434]
[1746462817531,0.003,94326.0,94325.0,0.5728434]
[1746462817932,1e-07,94326.0,94325.0,0.5728434]
[1746462818940,1e-07,94326.0,94325.0,0.6788594]
[1746462819139,1e-07,94326.0,94325.0,0.7348594]
[1746462820440,0.0587,94344.0,94343.0,0.212003]
[1746462821030,0.0587,94344.0,94343.0,0.332103]
[1746462822026,0.1175,94344.0,94343.0,0.332103]
[1746462822439,0.1215,94344.0,94343.0,0.332103]
[1746462822640,0.1275,94344.0,94343.0,0.332103]
[1746462825438,0.1275,94344.0,94343.0,0.272303]
[1746462831147,0.1245,94344.0,94343.0,0.272303]
[1746462832143,0.3365007,94344.0,94343.0,0.272303]
[1746462832344,0.3365007,94344.0,94343.0,0.212003]
[1746462832545,0.3325007,94344.0,94343.0,0.212003]
[1746462832743,0.3345007,94344.0,94343.0,0.212003]
[1746462832938,0.1225,94344.0,94343.0,0.212003]
[1746462833750,0.1225,94344.0,94343.0,0.273003]
[1746462834351,0.005,94344.0,94343.0,0.273003]
[1746462834546,0.005,94344.0,94343.0,0.325503]
[1746462836546,0.003,94344.0,94343.0,0.327503]
[1746462837355,0.003,94344.0,94343.0,0.326503]
[1746462837556,0.057,94344.0,94343.0,0.326503]
[1746462838057,0.057,94344.0,94343.0,0.274003]
[1746462838556,0.054,94344.0,94343.0,0.274003]
[1746462841359,0.111,94344.0,94343.0,0.274003]
[1746462850657,0.3230007,94344.0,94343.0,0.274003]
[1746462851863,0.6838007,94344.0,94343.0,0.213003]
[1746462852462,0.8897967,94344.0,94343.0,0.001]
[1746462852665,0.2120412,94326.0,94325.0,0.3715476]
[1746462852968,0.3608,94326.0,94325.0,0.3180476]
[1746462853164,0.1632,94327.0,94326.0,0.2120412]
[1746462853553,0.4419196,94327.0,94326.0,0.2120412]
[1746462855656,0.8027196,94327.0,94326.0,0.2120412]
[1746462856260,0.8037196,94327.0,94326.0,0.2120412]
[1746462857167,0.8057196,94327.0,94326.0,0.2120412]
[1746462857560,0.527,94327.0,94326.0,0.2120412]
[1746462857763,0.4748,94327.0,94326.0,0.2120412]
[1746462858058,0.3638,94327.0,94326.0,0.2120412]
[1746462858260,0.3638,94327.0,94326.0,0.3809412]
[1746462858565,0.3638,94327.0,94326.0,0.7417412]
[1746462858566,0.003,94327.0,94326.0,0.7417412]
[1746462859469,0.001,94327.0,94326.0,0.7417412]
[1746462859767,0.0532,94335.0,94334.0,0.2120232]
[1746462859957,0.0532,94335.0,94334.0,0.5728232]
[1746462860556,0.0532,94335.0,94334.0,0.6824232]
[1746462861165,0.0542,94335.0,94334.0,0.6824232]
[1746462861461,0.0542,94335.0,94334.0,0.3216232]
[1746462861659,0.0542,94335.0,94334.0,0.6824232]
[1746462863161,0.6260209,94335.0,94334.0,0.2120232]
[1746462863368,0.6842209,94335.0,94334.0,0.2120232]
[1746462863768,0.2120277,94333.0,94332.0,0.2120259]
[1746462864368,0.3226277,94333.0,94332.0,0.2120259]
[1746462865461,0.3226277,94333.0,94332.0,0.2688259]
[1746462866363,0.3246254,94333.0,94332.0,0.2688259]
[1746462866570,0.1136,94333.0,94332.0,0.2688259]
[1746462867673,0.1136,94333.0,94332.0,0.3210259]
[1746462867866,0.1126,94333.0,94332.0,0.3210259]
[1746462868062,0.1136,94333.0,94332.0,0.3210259]
[1746462868268,0.0564,94333.0,94332.0,0.3210259]
[1746462868868,0.003,94333.0,94332.0,0.3210259]
[1746462870067,0.002,94333.0,94332.0,0.3210259]
[1746462870467,0.001,94333.0,94332.0,0.3210259]
[1746462870760,0.12272,94338.0,94337.0,0.2120164]
[1746462871773,0.3347342,94338.0,94337.0,0.3220164]
[1746462872075,0.3347342,94338.0,94337.0,0.32182592]
[1746462872578,0.12272,94338.0,94337.0,0.32182592]
[1746462872873,0.3357342,94338.0,94337.0,0.32182592]
[1746462873276,0.12472,94338.0,94337.0,0.32182592]
[1746462873477,0.12572,94338.0,94337.0,0.32182592]
[1746462873869,0.3377342,94338.0,94337.0,0.32182592]
[1746462874475,0.3367342,94338.0,94337.0,0.32182592]
[1746462874679,0.3377342,94338.0,94337.0,0.32182592]
[1746462874877,0.12572,94338.0,94337.0,0.32182592]
[1746462875181,0.059,94338.0,94337.0,0.32182592]
[1746462875676,0.1131,94338.0,94337.0,0.32182592]
[1746462875879,0.1141,94338.0,94337.0,0.32182592]
[1746462876171,0.1131,94338.0,94337.0,0.32182592]
[1746462876368,0.1141,94338.0,94337.0,0.32182592]
[1746462877079,0.1131,94338.0,94337.0,0.32182592]
[1746462877675,0.057,94338.0,94337.0,0.32182592]
[1746462878178,0.001,94338.0,94337.0,0.32182592]
[1746462879673,0.0526,94340.0,94339.0,0.2120119]
[1746462880881,0.0536,94340.0,94339.0,0.2120119]
[1746462882670,0.3739097,94340.0,94339.0,0.2120119]
[1746462882980,0.1619,94340.0,94339.0,0.2120119]
[1746462883373,0.3739097,94340.0,94339.0,0.2120119]
[1746462884580,0.3749097,94340.0,94339.0,0.2120119]
[1746462886973,0.3749097,94340.0,94339.0,0.2668119]
[1746462887982,0.3759097,94340.0,94339.0,0.2668119]
[1746462888676,0.2120277,94332.0,94310.0,0.3608]
[1746462888878,0.2120457,94325.0,94309.0,0.0544]
[1746462889076,0.2120457,94325.0,94324.0,0.2120457]
[1746462889281,0.5728457,94325.0,94324.0,0.2120457]
[1746462889776,0.3608,94325.0,94310.0,0.0566]
[1746462889982,0.6258913,94317.0,94316.0,0.265066]
[1746462890579,0.6248913,94317.0,94316.0,0.265066]
[1746462891478,0.6248913,94317.0,94316.0,0.2140519]
[1746462892280,0.6248913,94317.0,94316.0,0.2160519]
[1746462892477,0.6248913,94317.0,94316.0,0.004]
[1746462892676,0.6248913,94317.0,94316.0,0.2160636]
[1746462892879,0.6248913,94317.0,94316.0,0.004]
[1746462893080,0.6248913,94317.0,94316.0,0.2160636]
[1746462897283,0.5728749,94317.0,94316.0,0.2160636]
[1746462900186,0.5748749,94317.0,94316.0,0.2140636]
[1746462900685,0.5768749,94317.0,94316.0,0.2120636]
[1746462902588,0.3648,94317.0,94316.0,0.2120636]
[1746462902790,0.004,94317.0,94316.0,0.2120636]
[1746462903086,0.004,94317.0,94316.0,0.3153636]
[1746462903794,0.003,94317.0,94316.0,0.3153636]
[1746462904287,0.002,94317.0,94316.0,0.3153636]
[1746462904485,0.002,94317.0,94316.0,0.3173636]
[1746462904685,0.06668,94321.0,94320.0,0.2120547]
[1746462905488,0.06668,94321.0,94320.0,0.2641547]
[1746462905688,0.0502,94328.0,94327.0,0.2120389]
[1746462905990,0.2622367,94328.0,94327.0,0.2120389]
[1746462906685,0.2622367,94328.0,94327.0,0.2641389]
[1746462907299,0.2632367,94328.0,94327.0,0.2641389]
[1746462907592,0.0512,94328.0,94327.0,0.2641389]
[1746462907791,0.2622367,94328.0,94327.0,0.2641389]
[1746462907987,0.0512,94328.0,94327.0,0.2641389]
[1746462908394,0.003,94328.0,94327.0,0.2641389]
[1746462909280,0.2130367,94328.0,94327.0,0.2641389]
[1746462909483,0.2130367,94328.0,94322.0,0.0530123]
[1746462909484,0.0530114,94325.0,94322.0,0.0530123]
[1746462909692,0.2650593,94325.0,94324.0,0.2120446]
[1746462910690,0.2670593,94325.0,94324.0,0.2120446]
[1746462912293,0.2710593,94325.0,94324.0,0.2120446]
[1746462913990,0.2180479,94325.0,94324.0,0.2120446]
[1746462917801,0.2170479,94325.0,94324.0,0.2120446]
[1746462919900,0.2150479,94325.0,94324.0,0.2120446]
[1746462920099,0.2170479,94325.0,94324.0,0.2120446]
[1746462920501,0.2150479,94325.0,94324.0,0.2120446]
[1746462920793,0.2170479,94325.0,94324.0,0.2120446]
[1746462921000,0.6275479,94325.0,94324.0,0.2120446]
[1746462921199,0.2650986,94311.0,94310.0,0.2120645]
[1746462921401,0.2650986,94311.0,94310.0,0.2618645]
[1746462921603,0.3317386,94311.0,94310.0,0.2650821]
[1746462921792,0.3814386,94311.0,94310.0,0.2650821]
[1746462922396,0.3824386,94311.0,94310.0,0.2650821]
[1746462922595,0.3824386,94311.0,94310.0,0.3147821]
[1746462923909,0.3294194,94311.0,94310.0,0.3147821]
[1746462924602,0.3294194,94311.0,94310.0,0.3681821]
[1746462925098,0.06764,94311.0,94310.0,0.3681821]
[1746462925303,0.001,94311.0,94310.0,0.4224821]
[1746462926598,0.001,94311.0,94310.0,0.4234821]
[1746462927197,0.06664,94322.0,94321.0,0.2120524]
[1746462928099,0.06664,94322.0,94321.0,0.3163524]
[1746462928800,0.06764,94322.0,94321.0,0.3163524]
[1746462930508,0.06864,94322.0,94321.0,0.3163524]
[1746462932705,0.001,94322.0,94321.0,0.3163524]
[1746462933600,0.2786773,94328.0,94327.0,0.2120389]
[1746462934002,0.06664,94328.0,94327.0,0.2120389]
[1746462934403,0.06664,94328.0,94327.0,0.3182389]
[1746462934609,0.11654,94328.0,94327.0,0.3182389]
[1746462935209,0.11654,94328.0,94327.0,0.32892616]
[1746462935814,0.11754,94328.0,94327.0,0.32892616]
[1746462936004,0.06764,94328.0,94327.0,0.32892616]
[1746462937414,0.06964,94328.0,94327.0,0.32892616]
[1746462938314,0.06864,94328.0,94327.0,0.32892616]
[1746462939015,0.06664,94328.0,94327.0,0.32892616]
[1746462939214,0.06764,94328.0,94327.0,0.32892616]
[1746462940707,0.06664,94328.0,94327.0,0.32892616]
[1746462941513,0.06764,94328.0,94327.0,0.32892616]
[1746462943307,0.001,94328.0,94327.0,0.32892616]
[1746462943914,0.0505,94329.0,94328.0,0.2120367]
[1746462945007,0.0505,94329.0,94328.0,0.3164367]
[1746462945413,0.0515,94329.0,94328.0,0.3164367]
[1746462948819,0.1026,94329.0,94328.0,0.3164367]
[1746462949020,0.3146344,94329.0,94328.0,0.3164367]
[1746462949221,0.1026,94329.0,94328.0,0.3164367]
[1746462953622,0.3146344,94329.0,94328.0,0.3164367]
[1746462953924,0.1026,94329.0,94328.0,0.3164367]
[1746462956627,0.0515,94329.0,94328.0,0.3164367]
[1746462957816,0.0505,94329.0,94328.0,0.3164367]
[1746462958524,0.3608,94354.0,94335.0,0.2120209]
[1746462958717,0.0506,94342.0,94335.0,0.2120209]
[1746462958916,0.06806,94345.0,94335.0,0.2120209]
[1746462959117,0.2120014,94344.0,94335.0,0.2120209]
[1746462959422,0.2623026,94344.0,94335.0,0.3153209]
[1746462959623,0.0503,94344.0,94335.0,0.3153209]
[1746462959816,0.2623013,94344.0,94335.0,0.3153209]
[1746462960013,0.0503,94344.0,94335.0,0.3173209]
[1746462960420,0.0503,94344.0,94335.0,0.3183209]
[1746462960829,0.2120056,94342.0,94335.0,0.3183209]
[1746462961020,0.0503,94344.0,94335.0,0.3183209]
[1746462961919,0.0503,94344.0,94343.0,0.212003]
[1746462962114,0.0993,94344.0,94343.0,0.212003]
[1746462962720,0.0503,94344.0,94343.0,0.317103]
[1746462963629,0.0523,94344.0,94343.0,0.317103]
[1746462963824,0.002,94344.0,94343.0,0.317103]
[1746462965432,0.0015,94345.0,94344.0,0.2120007]
[1746462965633,0.3608,94373.0,94349.0,0.0529971]
[1746462965634,0.1028,94366.0,94349.0,0.0529971]
[1746462965834,0.3608,94364.0,94355.0,0.211976]
[1746462966224,0.0538,94363.0,94355.0,0.211976]
[1746462967125,0.007,94356.0,94355.0,0.211976]
[1746462969137,0.005,94356.0,94355.0,0.211976]
[1746462969325,0.008,94356.0,94355.0,0.211976]
[1746462969521,0.004,94356.0,94355.0,0.213976]
[1746462969726,0.001,94356.0,94355.0,0.213976]
[1746462969927,0.001,94356.0,94355.0,0.215976]
[1746462970134,0.001,94356.0,94355.0,0.213976]
[1746462970334,0.001,94356.0,94355.0,0.215976]
[1746462971230,0.3618,94356.0,94355.0,0.215976]
[1746462971533,0.5737738,94356.0,94355.0,0.215976]
[1746462971736,0.6403338,94356.0,94355.0,0.004]
[1746462971926,0.6403338,94356.0,94355.0,0.215976]
[1746462972126,0.6403338,94356.0,94355.0,0.214976]
[1746462972937,0.74631596,94356.0,94355.0,0.003]
[1746462973138,0.74631596,94356.0,94355.0,0.001]
[1746462973431,0.84631596,94356.0,94355.0,0.002]
[1746462973640,0.2120094,94341.0,94340.0,0.2650101]
[1746462973829,0.0530035,94339.0,94336.0,0.2650186]
[1746462974134,0.3608,94337.0,94336.0,0.2650186]
[1746462974635,0.5728164,94337.0,94336.0,0.2650186]
[1746462975234,0.5708164,94337.0,94336.0,0.2650186]
[1746462975740,0.3588,94337.0,94336.0,0.2650186]
[1746462976233,0.5708164,94337.0,94336.0,0.2680186]
[1746462976735,0.5708164,94337.0,94336.0,0.2710186]
[1746462977336,0.3588,94337.0,94336.0,0.2710186]
[1746462977522,0.5708164,94337.0,94336.0,0.2710186]
[1746462977726,0.6685164,94337.0,94336.0,0.2710186]
[1746462978537,0.6685164,94337.0,94336.0,0.006]
[1746462978927,0.7745199,94337.0,94336.0,0.006]
[1746462979126,0.8745199,94337.0,94336.0,0.006]
[1746462979931,0.9245199,94337.0,94336.0,0.006]
[1746462980737,0.8245199,94337.0,94336.0,0.006]
[1746462980930,0.9245199,94337.0,94336.0,0.006]
[1746462982936,0.9285199,94337.0,94336.0,0.003]
[1746462983438,0.2120187,94336.0,94335.0,0.2120198]
[1746462983639,0.2120232,94334.0,94333.0,0.26503]
[1746462984138,0.2120232,94334.0,94333.0,0.2120237]
[1746462984339,0.2654232,94334.0,94333.0,0.2120237]
[1746462984541,0.2120299,94331.0,94330.0,0.00159005]
[1746462984837,0.5728299,94331.0,94330.0,0.00159005]
[1746462985141,0.2120704,94314.0,94313.0,0.2120696]
[1746462985340,0.6393904,94314.0,94313.0,0.2120696]
[1746462985637,0.7910904,94314.0,94313.0,0.2120696]
[1746462985832,0.0530192,94310.0,94307.0,0.265097]
[1746462986032,0.3144794,94309.0,94308.0,0.2601794]
[1746462986940,0.3134794,94309.0,94308.0,0.27075825]
[1746462987438,0.3134794,94309.0,94308.0,0.27275825]
[1746462988037,0.3134794,94309.0,94308.0,0.22465825]
[1746462988428,0.3134794,94309.0,94308.0,0.22665825]
[1746462988835,0.3134794,94309.0,94308.0,0.27475825]
[1746462989042,0.3134794,94309.0,94308.0,0.2641794]
[1746462993936,0.3134794,94309.0,94308.0,0.3136794]
[1746462994748,0.4118,94314.0,94313.0,0.2120704]
[1746462995043,0.3608,94314.0,94313.0,0.2120704]
[1746462995641,0.3608,94314.0,94313.0,0.3086704]
[1746462996248,0.3608,94314.0,94313.0,0.3096704]
[1746462997950,0.06652,94326.0,94325.0,0.2120434]
[1746462998841,0.06652,94326.0,94325.0,0.3076434]
[1746462999442,0.2815612,94326.0,94325.0,0.3076434]
[1746462999648,0.2845612,94326.0,94325.0,0.3076434]
[1746463000151,0.07252,94326.0,94325.0,0.3076434]
[1746463001051,0.2845612,94326.0,94325.0,0.3076434]
[1746463002251,0.07252,94326.0,94325.0,0.3076434]
[1746463002454,0.2845612,94326.0,94325.0,0.3076434]
[1746463002844,0.6453612,94326.0,94325.0,0.3076434]
[1746463003646,0.43332,94326.0,94325.0,0.3076434]
[1746463004048,0.6423612,94326.0,94325.0,0.3076434]
[1746463004249,0.6433612,94326.0,94325.0,0.3076434]
[1746463004554,0.6423612,94326.0,94325.0,0.3076434]
[1746463007758,0.6413612,94326.0,94325.0,0.3076434]
[1746463008260,0.42932,94326.0,94325.0,0.3076434]
[1746463008456,0.3628,94326.0,94325.0,0.3076434]
[1746463009053,0.002,94326.0,94325.0,0.3076434]
[1746463009757,0.001,94326.0,94325.0,0.3076434]
[1746463010850,0.2612284,94332.0,94331.0,0.2120299]
[1746463011051,0.0530088,94329.0,94325.0,0.2016209]
[1746463011247,0.101008,94331.0,94318.0,0.0530146]
[1746463011457,0.5728524,94321.0,94312.0,0.0530181]
[1746463011656,0.2120929,94303.0,94292.0,0.21370769]
[1746463011863,0.2121041,94298.0,94297.0,0.0468]
[1746463012064,0.2121041,94298.0,94297.0,0.2589064]
[1746463012561,0.2111041,94298.0,94297.0,0.2589064]
[1746463012862,0.2091006,94300.0,94299.0,0.2120996]
[1746463013263,0.2091006,94300.0,94299.0,0.2588996]
[1746463014159,0.2091006,94300.0,94299.0,0.2160996]
[1746463014864,0.2091006,94300.0,94299.0,0.2200996]
[1746463015661,0.2091006,94300.0,94299.0,0.2659996]
[1746463016264,0.3567968,94302.0,94301.0,0.2120974]
[1746463016463,0.1447,94302.0,94301.0,0.2120974]
[1746463016657,0.16322,94302.0,94301.0,0.2120974]
[1746463017060,0.3753151,94302.0,94301.0,0.2120974]
[1746463017256,0.4244151,94302.0,94301.0,0.2120974]
[1746463017855,0.21532,94302.0,94301.0,0.2120974]
[1746463018055,0.4274151,94302.0,94301.0,0.2120974]
[1746463018550,0.21432,94302.0,94301.0,0.2120974]
[1746463018749,0.4294151,94302.0,94301.0,0.2120974]
[1746463018962,0.21732,94302.0,94301.0,0.2120974]
[1746463019357,0.21632,94302.0,94301.0,0.2120974]
[1746463019658,0.4284151,94302.0,94301.0,0.2120974]
[1746463020358,0.21432,94302.0,94301.0,0.2120974]
[1746463020564,0.004,94302.0,94301.0,0.2120974]
[1746463020762,0.004,94302.0,94301.0,0.3181414]
[1746463021157,0.004,94302.0,94301.0,0.3663414]
[1746463024171,0.004,94302.0,94301.0,0.2602974]
[1746463026654,0.002,94302.0,94301.0,0.2602974]
[1746463026860,0.3070951,94302.0,94301.0,0.2612974]
[1746463027061,0.3070951,94302.0,94301.0,0.001]
[1746463027266,0.2121019,94299.0,94298.0,0.6283041]
[1746463027467,0.2786219,94299.0,94298.0,0.6283041]
[1746463027769,0.2776219,94299.0,94298.0,0.6283041]
[1746463028473,0.2776219,94299.0,94298.0,0.4162]
[1746463028663,0.2776219,94299.0,94298.0,0.6283041]
[1746463029256,0.2776219,94299.0,94298.0,0.4162]
[1746463029462,0.2121086,94296.0,94295.0,0.0010605]
[1746463029660,0.2121086,94296.0,94295.0,0.2131714]
[1746463029859,0.2121086,94296.0,94295.0,0.0010605]
[1746463030470,0.2121086,94296.0,94295.0,0.2131714]
[1746463030767,0.2121086,94296.0,94295.0,0.0010605]
[1746463030967,0.3095086,94296.0,94295.0,0.0010605]
[1746463031173,0.51955819,94296.0,94295.0,0.0010605]
[1746463031669,0.51955819,94296.0,94295.0,0.2131714]
[1746463031870,0.41955819,94296.0,94295.0,0.2131714]
[1746463032072,0.3135086,94296.0,94295.0,0.2131714]
[1746463032571,0.3800286,94296.0,94295.0,0.2131714]
[1746463032866,0.4800286,94296.0,94295.0,0.0010605]
[1746463033055,0.2121604,94273.0,94272.0,0.0461]
[1746463033260,0.3608,94273.0,94266.0,0.0530436]
[1746463033466,0.3608,94273.0,94266.0,0.2582746]
[1746463033467,0.5729761,94267.0,94266.0,0.2582746]
[1746463033768,0.6394961,94267.0,94266.0,0.2582746]
[1746463034163,0.6384961,94267.0,94266.0,0.2582746]
[1746463034766,0.6374961,94267.0,94266.0,0.2582746]
[1746463035069,0.7314961,94267.0,94266.0,0.2582746]
[1746463035767,0.7314961,94267.0,94266.0,0.2602746]
[1746463036161,0.7314961,94267.0,94266.0,0.2141746]
[1746463036567,0.7314961,94267.0,94266.0,0.2161746]
[1746463038267,0.93757832,94267.0,94266.0,0.004]
[1746463039063,0.94157832,94267.0,94266.0,0.002]
[1746463039272,0.2121761,94266.0,94265.0,0.00106083]
[1746463039666,0.3087761,94266.0,94265.0,0.00106083]
[1746463039872,0.41485944,94266.0,94265.0,0.00106083]
[1746463040572,0.41985944,94266.0,94265.0,0.00106083]
[1746463040769,0.42485944,94266.0,94265.0,0.00106083]
[1746463041679,0.2121941,94258.0,94257.0,0.00159139]
[1746463041880,0.6729941,94258.0,94257.0,0.00159139]
[1746463042172,0.5729941,94258.0,94257.0,0.21378779]
[1746463042563,0.6693941,94258.0,94257.0,0.21378779]
[1746463043074,0.6753941,94258.0,94257.0,0.21378779]
[1746463044375,0.7753941,94258.0,94257.0,0.21378779]
[1746463044873,0.7753941,94258.0,94257.0,0.00159139]
[1746463045279,0.7753941,94258.0,94257.0,0.21378779]
[1746463045778,0.7723941,94258.0,94257.0,0.21378779]
[1746463046080,0.7753941,94258.0,94257.0,0.21378779]
[1746463046474,0.6753941,94258.0,94257.0,0.00159139]
[1746463046778,0.8253941,94258.0,94257.0,0.00159139]
[1746463048473,0.8253941,94258.0,94257.0,0.21378779]
[1746463048680,0.7253941,94258.0,94257.0,0.21378779]
[1746463048878,0.8253941,94258.0,94257.0,0.21378779]
[1746463049374,0.8253941,94258.0,94257.0,0.00159139]
[1746463051783,0.8253941,94258.0,94257.0,0.04799139]
[1746463051981,0.7919141,94258.0,94257.0,0.26018779]
[1746463052182,0.7919141,94258.0,94257.0,0.04799139]
[1746463052381,0.8919141,94258.0,94257.0,0.04799139]
[1746463054787,0.8919141,94258.0,94257.0,0.00159139]
[1746463056193,0.2122076,94252.0,94251.0,0.046]
[1746463056387,0.6730076,94252.0,94251.0,0.046]
[1746463056590,0.4608,94252.0,94237.0,0.22294914]
[1746463056791,0.2122437,94236.0,94228.0,0.100765]
[1746463056987,0.63890014,94236.0,94232.0,0.053063]
[1746463057191,0.63890014,94236.0,94235.0,0.21330707]
[1746463057581,0.68790014,94236.0,94235.0,0.00106117]
[1746463057786,0.212273,94223.0,94222.0,0.26693028]
[1746463057987,0.573073,94223.0,94222.0,0.26693028]
[1746463058297,0.639593,94223.0,94222.0,0.26693028]
[1746463058496,0.639593,94223.0,94222.0,0.36073028]
[1746463059896,0.3608,94223.0,94222.0,0.36073028]
[1746463060097,0.42832,94223.0,94222.0,0.36473028]
[1746463060296,0.42732,94223.0,94222.0,0.37541548]
[1746463060892,0.3608,94223.0,94222.0,0.37741548]
[1746463061098,0.001,94223.0,94222.0,0.37741548]
[1746463061988,0.001,94223.0,94222.0,0.48354748]
[1746463062193,0.212259,94230.0,94229.0,0.2122572]
[1746463063095,0.278779,94230.0,94229.0,0.2122572]
[1746463063490,0.279779,94230.0,94229.0,0.2122572]
[1746463064398,0.280779,94230.0,94229.0,0.2122572]
[1746463064597,0.329979,94230.0,94229.0,0.2122572]
[1746463067693,0.330979,94230.0,94229.0,0.2122572]
[1746463069696,0.328979,94230.0,94229.0,0.2122572]
[1746463069903,0.330979,94230.0,94229.0,0.2122572]
[1746463070294,0.281779,94230.0,94229.0,0.2122572]
[1746463071302,0.280779,94230.0,94229.0,0.2122572]
[1746463071504,0.282779,94230.0,94229.0,0.2122572]
[1746463072003,0.282779,94230.0,94229.0,0.21220012]
[1746463072504,0.382779,94230.0,94229.0,0.21220012]
[1746463072908,0.430179,94230.0,94229.0,0.21220012]
[1746463073608,0.363659,94230.0,94229.0,0.21220012]
[1746463073809,0.430179,94230.0,94229.0,0.21220012]
[1746463075310,0.330179,94230.0,94229.0,0.21220012]
[1746463075509,0.327179,94230.0,94229.0,0.21220012]
[1746463075709,0.328179,94230.0,94229.0,0.21220012]
[1746463076214,0.327179,94230.0,94229.0,0.21220012]
[1746463076413,0.328179,94230.0,94229.0,0.21220012]
[1746463076911,0.327179,94230.0,94229.0,0.21220012]
[1746463077112,0.328179,94230.0,94229.0,0.21220012]
[1746463077310,0.428179,94230.0,94229.0,0.21220012]
[1746463077712,0.426179,94230.0,94229.0,0.21220012]
[1746463077906,0.428179,94230.0,94229.0,0.21220012]
[1746463078508,0.2122594,94229.0,94228.0,0.0466]
[1746463078708,0.2585594,94229.0,94228.0,0.0466]
[1746463078908,0.3070594,94229.0,94228.0,0.0466]
[1746463079806,0.3090594,94229.0,94228.0,0.0466]
[1746463080007,0.3090594,94229.0,94228.0,0.2588617]
[1746463080207,0.3110594,94229.0,94228.0,0.2588617]
[1746463083524,0.3120594,94229.0,94228.0,0.2598617]
[1746463083814,0.3120594,94229.0,94228.0,0.0476]
[1746463084015,0.3120594,94229.0,94228.0,0.2598617]
[1746463084406,0.3110594,94229.0,94228.0,0.2588617]
[1746463085716,0.3110594,94229.0,94228.0,0.2122617]
[1746463086214,0.3120594,94229.0,94228.0,0.2122617]
[1746463086418,0.2122617,94228.0,94227.0,0.0466]
[1746463086711,0.2122617,94228.0,94227.0,0.2588639]
[1746463087015,0.3029617,94228.0,94227.0,0.2588639]
[1746463089313,0.3059617,94228.0,94227.0,0.2588639]
[1746463090013,0.3079617,94228.0,94227.0,0.2588639]
[1746463090212,0.3049617,94228.0,94227.0,0.2588639]
[1746463090412,0.3744817,94228.0,94227.0,0.2588639]
[1746463090910,0.3744817,94228.0,94227.0,0.0466]
[1746463091110,0.4714817,94228.0,94227.0,0.2588639]
[1746463091312,0.4734817,94228.0,94227.0,0.2588639]
[1746463091910,0.4724817,94228.0,94227.0,0.2588639]
[1746463093115,0.4734817,94228.0,94227.0,0.2588639]
[1746463094218,0.4724817,94228.0,94227.0,0.2588639]
[1746463094425,0.4744817,94228.0,94227.0,0.2588639]
[1746463095215,0.4744817,94228.0,94227.0,0.0466]
[1746463095624,0.4744817,94228.0,94227.0,0.2588639]